[Event "*** Titled Tuesday Blitz"]
[Site "Chess.com"]
[Date "2020.11.10"]
[Round "1"]
[White "Volodar_Murzin"]
[Black "Nils_03"]
[Result "1-0"]
[WhiteElo "2573"]
[BlackElo "2247"]
[TimeControl "180+1"]
[EndTime "10:05:46 PST"]
[Termination "Volodar_Murzin won by resignation"]

1. e4 {[%clk 0:02:54.6]} 1... e5 {[%clk 0:02:59.9]} 2. Nf3 {[%clk 0:02:54.4]}
2... Nc6 {[%clk 0:02:59.7]} 3. d4 {[%clk 0:02:54.5]} 3... exd4 {[%clk
0:02:59.2]} 4. Nxd4 {[%clk 0:02:55.4]} 4... Bc5 {[%clk 0:02:59.6]} 5. Nxc6
{[%clk 0:02:53.3]} 5... Qf6 {[%clk 0:02:59.3]} 6. Qf3 {[%clk 0:02:52.7]} 6...
Qxf3 {[%clk 0:02:58.5]} 7. gxf3 {[%clk 0:02:51.4]} 7... dxc6 {[%clk 0:02:58.7]}
8. Be3 {[%clk 0:02:42]} 8... Bb6 {[%clk 0:02:55.1]} 9. Nd2 {[%clk 0:02:37.1]}
9... Be6 {[%clk 0:02:54.2]} 10. Rg1 {[%clk 0:02:35.8]} 10... g6 {[%clk
0:02:53.2]} 11. a4 {[%clk 0:02:25]} 11... O-O-O {[%clk 0:02:50.6]} 12. a5 {[%clk
0:02:23.2]} 12... Bxe3 {[%clk 0:02:50.4]} 13. fxe3 {[%clk 0:02:24.1]} 13... Ne7
{[%clk 0:02:46.2]} 14. Bd3 {[%clk 0:02:13.3]} 14... c5 {[%clk 0:02:45.4]} 15.
Bc4 {[%clk 0:02:01.8]} 15... Nc6 {[%clk 0:02:42.7]} 16. Bxe6+ {[%clk 0:01:59.8]}
16... fxe6 {[%clk 0:02:43.6]} 17. Nc4 {[%clk 0:01:57]} 17... Rhf8 {[%clk
0:02:41.5]} 18. Ke2 {[%clk 0:01:56]} 18... b5 {[%clk 0:02:34.5]} 19. axb6 {[%clk
0:01:53.4]} 19... cxb6 {[%clk 0:02:34.5]} 20. e5 {[%clk 0:01:42.2]} 20... Kb8
{[%clk 0:02:29.1]} 21. f4 {[%clk 0:01:36.2]} 21... Nb4 {[%clk 0:02:18.5]} 22. c3
{[%clk 0:01:32.9]} 22... Nd5 {[%clk 0:02:10.7]} 23. Nd6 {[%clk 0:01:24]} 23...
a5 {[%clk 0:02:04.3]} 24. Ne4 {[%clk 0:01:17.3]} 24... Kb7 {[%clk 0:01:58.7]}
25. Ng5 {[%clk 0:01:14.2]} 25... Nc7 {[%clk 0:01:55]} 26. h4 {[%clk 0:01:11.5]}
26... Kc6 {[%clk 0:01:47.8]} 27. Rh1 {[%clk 0:01:00.9]} 27... Rd7 {[%clk
0:01:44.8]} 28. Rad1 {[%clk 0:00:57.9]} 28... Rfd8 {[%clk 0:01:41]} 29. Nxh7
{[%clk 0:00:53.1]} 29... c4 {[%clk 0:01:26.8]} 30. Rxd7 {[%clk 0:00:48.9]} 30...
Rxd7 {[%clk 0:01:27.7]} 31. Nf8 {[%clk 0:00:47.9]} 31... Rg7 {[%clk 0:01:24.4]}
32. Rg1 {[%clk 0:00:38.7]} 32... Rh7 {[%clk 0:01:18.8]} 33. Nxh7 {[%clk
0:00:37.5]} 1-0

[Event "*** Titled Tuesday Blitz"]
[Site "Chess.com"]
[Date "2020.11.10"]
[Round "1"]
[White "VladimirPotkin"]
[Black "ChronicUnhappiness"]
[Result "1-0"]
[WhiteElo "2644"]
[BlackElo "2316"]
[TimeControl "180+1"]
[EndTime "10:05:48 PST"]
[Termination "VladimirPotkin won by resignation"]

1. Nf3 {[%clk 0:02:56.2]} 1... Nf6 {[%clk 0:02:59.1]} 2. c4 {[%clk 0:02:55.3]}
2... e6 {[%clk 0:02:58.4]} 3. Nc3 {[%clk 0:02:55]} 3... d5 {[%clk 0:02:58.5]} 4.
e3 {[%clk 0:02:55.6]} 4... Be7 {[%clk 0:02:52.1]} 5. b3 {[%clk 0:02:55.4]} 5...
O-O {[%clk 0:02:51.6]} 6. Bb2 {[%clk 0:02:55.8]} 6... c5 {[%clk 0:02:51.3]} 7.
cxd5 {[%clk 0:02:56.2]} 7... exd5 {[%clk 0:02:45.3]} 8. d4 {[%clk 0:02:55.2]}
8... Nc6 {[%clk 0:02:44.8]} 9. Be2 {[%clk 0:02:54.2]} 9... Bg4 {[%clk
0:02:33.2]} 10. dxc5 {[%clk 0:02:51.5]} 10... Bxc5 {[%clk 0:02:32.4]} 11. O-O
{[%clk 0:02:52.1]} 11... Rc8 {[%clk 0:02:26.6]} 12. h3 {[%clk 0:02:51.6]} 12...
Be6 {[%clk 0:02:25.5]} 13. Rc1 {[%clk 0:02:50.7]} 13... Bd6 {[%clk 0:02:24.5]}
14. Nb5 {[%clk 0:02:50.1]} 14... Bb8 {[%clk 0:02:23.3]} 15. Nbd4 {[%clk
0:02:46.9]} 15... Qd7 {[%clk 0:02:20]} 16. Nxc6 {[%clk 0:02:16.2]} 16... bxc6
{[%clk 0:02:19.6]} 17. Ne5 {[%clk 0:02:07]} 17... Qd6 {[%clk 0:02:04.6]} 18. Ba6
{[%clk 0:01:57.3]} 18... Rc7 {[%clk 0:01:18.6]} 19. Qf3 {[%clk 0:01:48.6]} 19...
Ne4 {[%clk 0:01:10.4]} 20. Rfd1 {[%clk 0:01:46.5]} 20... Rd8 {[%clk 0:00:52.9]}
21. Bd3 {[%clk 0:01:38.6]} 21... Nf6 {[%clk 0:00:30.5]} 22. Qg3 {[%clk
0:01:18.8]} 22... c5 {[%clk 0:00:21.9]} 23. Qh4 {[%clk 0:01:13.2]} 23... Qe7
{[%clk 0:00:18.8]} 24. Ng4 {[%clk 0:01:03.7]} 24... Nxg4 {[%clk 0:00:17.7]} 25.
Qxh7+ {[%clk 0:01:02.4]} 1-0

[Event "*** Titled Tuesday Blitz"]
[Site "Chess.com"]
[Date "2020.11.10"]
[Round "1"]
[White "Zq1"]
[Black "Marianov_Podstavnikov"]
[Result "0-1"]
[WhiteElo "2540"]
[BlackElo "2234"]
[TimeControl "180+1"]
[EndTime "10:05:49 PST"]
[Termination "Marianov_Podstavnikov won by resignation"]

1. d4 {[%clk 0:03:00.8]} 1... Nf6 {[%clk 0:02:59.6]} 2. c4 {[%clk 0:03:00.1]}
2... e6 {[%clk 0:02:59.8]} 3. Nc3 {[%clk 0:02:59.6]} 3... Bb4 {[%clk 0:02:59.7]}
4. e3 {[%clk 0:02:59.9]} 4... d5 {[%clk 0:02:58.6]} 5. Bd3 {[%clk 0:02:59.7]}
5... e5 {[%clk 0:02:47.8]} 6. dxe5 {[%clk 0:02:56.2]} 6... dxc4 {[%clk
0:02:43.8]} 7. Qa4+ {[%clk 0:02:40.5]} 7... Nc6 {[%clk 0:02:41.8]} 8. Bxc4
{[%clk 0:02:39.1]} 8... Ne4 {[%clk 0:02:40.4]} 9. Ne2 {[%clk 0:02:32.9]} 9...
Nc5 {[%clk 0:02:33.4]} 10. Qc2 {[%clk 0:02:21.5]} 10... Nxe5 {[%clk 0:02:30.8]}
11. a3 {[%clk 0:02:05.9]} 11... Nxc4 {[%clk 0:02:19.1]} 12. axb4 {[%clk
0:02:02.2]} 12... Nd3+ {[%clk 0:02:19]} 13. Kf1 {[%clk 0:02:01.6]} 13... O-O
{[%clk 0:02:04.7]} 14. Nd4 {[%clk 0:01:47.1]} 14... Nxb4 {[%clk 0:01:28.7]} 15.
Qb3 {[%clk 0:01:46.1]} 15... c5 {[%clk 0:01:28.7]} 16. Qxc4 {[%clk 0:01:44.8]}
16... cxd4 {[%clk 0:01:28.7]} 17. Qxb4 {[%clk 0:01:29.4]} 17... dxc3 {[%clk
0:01:28]} 18. Qxc3 {[%clk 0:01:29.4]} 18... Bf5 {[%clk 0:01:10.6]} 19. f3 {[%clk
0:01:23.9]} 19... Rc8 {[%clk 0:01:05.1]} 20. Qd4 {[%clk 0:01:21.1]} 20... Rc2
{[%clk 0:01:01.6]} 21. g4 {[%clk 0:01:10.3]} 21... Qxd4 {[%clk 0:00:56.3]} 22.
exd4 {[%clk 0:01:08.6]} 22... Bd3+ {[%clk 0:00:56.3]} 23. Kg1 {[%clk 0:01:07]}
23... Re8 {[%clk 0:00:55.9]} 0-1

[Event "*** Titled Tuesday Blitz"]
[Site "Chess.com"]
[Date "2020.11.10"]
[Round "1"]
[White "GregShahade"]
[Black "JoachimMouhamad"]
[Result "1-0"]
[WhiteElo "2700"]
[BlackElo "2354"]
[TimeControl "180+1"]
[EndTime "10:05:58 PST"]
[Termination "GregShahade won by checkmate"]

1. e4 {[%clk 0:03:00.9]} 1... e5 {[%clk 0:02:56.1]} 2. Nf3 {[%clk 0:03:01]} 2...
Nc6 {[%clk 0:02:40.4]} 3. Bb5 {[%clk 0:03:00.5]} 3... a6 {[%clk 0:02:31.7]} 4.
Ba4 {[%clk 0:02:59.6]} 4... Nf6 {[%clk 0:02:30.9]} 5. O-O {[%clk 0:02:59.6]}
5... Be7 {[%clk 0:02:26.8]} 6. Re1 {[%clk 0:02:59.7]} 6... b5 {[%clk 0:02:23.7]}
7. Bb3 {[%clk 0:02:59.9]} 7... d6 {[%clk 0:02:22.8]} 8. c3 {[%clk 0:02:59.3]}
8... O-O {[%clk 0:02:20.2]} 9. h3 {[%clk 0:02:59.2]} 9... Nb8 {[%clk 0:02:19.8]}
10. d4 {[%clk 0:02:58.8]} 10... Nbd7 {[%clk 0:02:18.6]} 11. Nbd2 {[%clk
0:02:59.4]} 11... Bb7 {[%clk 0:02:16.8]} 12. Bc2 {[%clk 0:02:57.8]} 12... Re8
{[%clk 0:02:16.2]} 13. Nf1 {[%clk 0:02:57.4]} 13... Bf8 {[%clk 0:02:16]} 14. Ng3
{[%clk 0:02:58.2]} 14... g6 {[%clk 0:02:15.9]} 15. a4 {[%clk 0:02:57.4]} 15...
c5 {[%clk 0:02:15.1]} 16. d5 {[%clk 0:02:52.5]} 16... c4 {[%clk 0:02:14.9]} 17.
Bg5 {[%clk 0:02:51.9]} 17... h6 {[%clk 0:02:10.9]} 18. Be3 {[%clk 0:02:51.3]}
18... Nc5 {[%clk 0:01:55.5]} 19. Qd2 {[%clk 0:02:51.2]} 19... h5 {[%clk
0:01:53]} 20. Bg5 {[%clk 0:02:51.4]} 20... Be7 {[%clk 0:01:52.3]} 21. Ra3 {[%clk
0:02:51.7]} 21... Nfd7 {[%clk 0:01:44.6]} 22. Be3 {[%clk 0:02:49.6]} 22... Qc7
{[%clk 0:01:28.2]} 23. Ng5 {[%clk 0:02:47.2]} 23... Nb6 {[%clk 0:01:24.6]} 24.
Bxc5 {[%clk 0:02:47.3]} 24... Qxc5 {[%clk 0:01:15]} 25. Ne6 {[%clk 0:02:47.5]}
25... fxe6 {[%clk 0:01:00.5]} 26. Qh6 {[%clk 0:02:47.3]} 26... Rf8 {[%clk
0:00:38.1]} 27. Qxg6+ {[%clk 0:02:28]} 27... Kh8 {[%clk 0:00:37.9]} 28. Re3
{[%clk 0:01:25.7]} 28... Rf6 {[%clk 0:00:32.3]} 29. Qxh5+ {[%clk 0:01:25.6]}
29... Kg7 {[%clk 0:00:32.1]} 30. Nf5+ {[%clk 0:01:08.1]} 30... exf5 {[%clk
0:00:19.8]} 31. Rg3+ {[%clk 0:01:08]} 31... Kf8 {[%clk 0:00:18.4]} 32. Qh8+
{[%clk 0:01:08.1]} 32... Kf7 {[%clk 0:00:18.6]} 33. Rg7# {[%clk 0:01:08.7]} 1-0

[Event "*** Titled Tuesday Blitz"]
[Site "Chess.com"]
[Date "2020.11.10"]
[Round "1"]
[White "mishanick"]
[Black "Marcin"]
[Result "1-0"]
[WhiteElo "3051"]
[BlackElo "2470"]
[TimeControl "180+1"]
[EndTime "10:06:00 PST"]
[Termination "mishanick won by resignation"]

1. c4 {[%clk 0:03:00.1]} 1... Nf6 {[%clk 0:02:58.6]} 2. d4 {[%clk 0:03:00.3]}
2... g6 {[%clk 0:02:55.4]} 3. Nc3 {[%clk 0:03:00.5]} 3... Bg7 {[%clk 0:02:55.6]}
4. e4 {[%clk 0:03:00.5]} 4... d6 {[%clk 0:02:55.3]} 5. Be2 {[%clk 0:03:00.9]}
5... O-O {[%clk 0:02:55.8]} 6. Be3 {[%clk 0:03:00.7]} 6... Na6 {[%clk
0:02:49.1]} 7. Nf3 {[%clk 0:03:00.1]} 7... e5 {[%clk 0:02:43.8]} 8. d5 {[%clk
0:03:00.1]} 8... Ng4 {[%clk 0:02:40.3]} 9. Bg5 {[%clk 0:02:59.8]} 9... Qe8
{[%clk 0:02:40.4]} 10. Nd2 {[%clk 0:02:57.8]} 10... h6 {[%clk 0:02:31.5]} 11.
Bh4 {[%clk 0:02:44.5]} 11... Nf6 {[%clk 0:02:31.2]} 12. a3 {[%clk 0:02:38.2]}
12... c6 {[%clk 0:02:24.1]} 13. b4 {[%clk 0:02:35.6]} 13... Nd7 {[%clk
0:02:14.8]} 14. f3 {[%clk 0:02:32.8]} 14... f5 {[%clk 0:02:14.7]} 15. Bf2 {[%clk
0:02:30.1]} 15... Nf6 {[%clk 0:02:13.6]} 16. O-O {[%clk 0:02:27.4]} 16... f4
{[%clk 0:02:03.1]} 17. Nb3 {[%clk 0:02:22.2]} 17... Qe7 {[%clk 0:01:55.2]} 18.
dxc6 {[%clk 0:02:07.2]} 18... bxc6 {[%clk 0:01:54.5]} 19. c5 {[%clk 0:02:07.8]}
19... d5 {[%clk 0:01:30.6]} 20. exd5 {[%clk 0:02:05.2]} 20... cxd5 {[%clk
0:01:31]} 21. Nxd5 {[%clk 0:02:02.9]} 21... Nxd5 {[%clk 0:01:31.2]} 22. Qxd5+
{[%clk 0:02:03.1]} 22... Be6 {[%clk 0:01:31.5]} 23. Qe4 {[%clk 0:02:00.2]} 23...
Nc7 {[%clk 0:01:18.2]} 24. Na5 {[%clk 0:01:57.2]} 24... Bf5 {[%clk 0:01:13.4]}
25. Qc4+ {[%clk 0:01:51.7]} 25... Kh7 {[%clk 0:01:13.1]} 26. Rae1 {[%clk
0:01:50.3]} 26... e4 {[%clk 0:01:12.4]} 27. fxe4 {[%clk 0:01:50.5]} 27... Be6
{[%clk 0:01:01.8]} 28. Qc2 {[%clk 0:01:50.5]} 28... Be5 {[%clk 0:01:01.4]} 29.
Nc6 {[%clk 0:01:49.1]} 29... Qf6 {[%clk 0:00:56.1]} 30. Nxe5 {[%clk 0:01:49.5]}
30... Qxe5 {[%clk 0:00:56.2]} 31. Rd1 {[%clk 0:01:50.1]} 31... Rad8 {[%clk
0:00:55.3]} 32. c6 {[%clk 0:01:44.9]} 32... g5 {[%clk 0:00:36.4]} 33. Qc5 {[%clk
0:01:43.7]} 33... Qg7 {[%clk 0:00:20]} 34. Bd4 {[%clk 0:01:35]} 34... Qf7 {[%clk
0:00:15.5]} 35. Be5 {[%clk 0:01:35.4]} 35... Rxd1 {[%clk 0:00:09.4]} 36. Rxd1
{[%clk 0:01:35]} 36... g4 {[%clk 0:00:09.4]} 37. Bxc7 {[%clk 0:01:29]} 37...
Qxc7 {[%clk 0:00:09.2]} 38. Qxf8 {[%clk 0:01:28.4]} 1-0

[Event "*** Titled Tuesday Blitz"]
[Site "Chess.com"]
[Date "2020.11.10"]
[Round "1"]
[White "pheonixking2000"]
[Black "Luklei18"]
[Result "1-0"]
[WhiteElo "2775"]
[BlackElo "2391"]
[TimeControl "180+1"]
[EndTime "10:06:03 PST"]
[Termination "pheonixking2000 won on time"]

1. d4 {[%clk 0:03:00.6]} 1... Nf6 {[%clk 0:03:00]} 2. c4 {[%clk 0:02:58.8]} 2...
g6 {[%clk 0:02:59.9]} 3. Nc3 {[%clk 0:02:55.3]} 3... Bg7 {[%clk 0:03:00]} 4. e4
{[%clk 0:02:55.3]} 4... d6 {[%clk 0:03:00.5]} 5. Be2 {[%clk 0:02:54.9]} 5... O-O
{[%clk 0:03:00]} 6. Be3 {[%clk 0:02:54.1]} 6... a6 {[%clk 0:02:32.8]} 7. Nf3
{[%clk 0:02:46.3]} 7... Bg4 {[%clk 0:02:07.3]} 8. O-O {[%clk 0:02:42.2]} 8...
Nc6 {[%clk 0:02:05.3]} 9. d5 {[%clk 0:02:39.6]} 9... Bxf3 {[%clk 0:01:39]} 10.
Bxf3 {[%clk 0:02:39.4]} 10... Ne5 {[%clk 0:01:39.7]} 11. Be2 {[%clk 0:02:39.4]}
11... c6 {[%clk 0:01:40.2]} 12. Rc1 {[%clk 0:02:36.9]} 12... Rc8 {[%clk
0:01:28.2]} 13. Qb3 {[%clk 0:02:30.7]} 13... Qc7 {[%clk 0:01:25.2]} 14. dxc6
{[%clk 0:02:27.8]} 14... bxc6 {[%clk 0:01:24]} 15. c5 {[%clk 0:02:27.4]} 15...
Rb8 {[%clk 0:01:18.1]} 16. Qc2 {[%clk 0:02:23.8]} 16... a5 {[%clk 0:01:13.1]}
17. h3 {[%clk 0:02:21.7]} 17... Rb4 {[%clk 0:01:09.6]} 18. a3 {[%clk 0:02:20.5]}
18... Rb7 {[%clk 0:01:06.7]} 19. f4 {[%clk 0:02:19.5]} 19... Ned7 {[%clk
0:01:05.4]} 20. cxd6 {[%clk 0:02:15.9]} 20... exd6 {[%clk 0:01:06.3]} 21. Nb5
{[%clk 0:02:08.9]} 21... Qb8 {[%clk 0:00:29.1]} 22. Qxc6 {[%clk 0:02:08.5]}
22... Nc5 {[%clk 0:00:24.3]} 23. e5 {[%clk 0:02:00.4]} 23... Nfe4 {[%clk
0:00:16.4]} 24. Nxd6 {[%clk 0:01:59.1]} 24... Nxd6 {[%clk 0:00:14]} 25. exd6
{[%clk 0:01:58.6]} 25... Nd7 {[%clk 0:00:11.2]} 26. Bf3 {[%clk 0:01:53.1]} 26...
Rb3 {[%clk 0:00:07.9]} 27. Bf2 {[%clk 0:01:45.4]} 27... Rd8 {[%clk 0:00:07.8]}
28. Qc7 {[%clk 0:01:40.1]} 28... Rxb2 {[%clk 0:00:07]} 29. Bh4 {[%clk
0:01:39.6]} 29... f6 {[%clk 0:00:06.8]} 30. Rfe1 {[%clk 0:01:36.3]} 30... Bf8
{[%clk 0:00:07]} 31. Bd5+ {[%clk 0:01:29.9]} 31... Kh8 {[%clk 0:00:05.3]} 32.
Re7 {[%clk 0:01:29.5]} 32... Qc8 {[%clk 0:00:01.5]} 33. Qxc8 {[%clk 0:01:27.9]}
1-0

[Event "*** Titled Tuesday Blitz"]
[Site "Chess.com"]
[Date "2020.11.10"]
[Round "1"]
[White "Borsuk_Konstantin"]
[Black "pavelalexandru07"]
[Result "1-0"]
[WhiteElo "2615"]
[BlackElo "2299"]
[TimeControl "180+1"]
[EndTime "10:06:04 PST"]
[Termination "Borsuk_Konstantin won by resignation"]

1. d4 {[%clk 0:03:00.9]} 1... Nf6 {[%clk 0:02:59.5]} 2. c4 {[%clk 0:03:00.3]}
2... c5 {[%clk 0:02:58.9]} 3. d5 {[%clk 0:03:00.1]} 3... e6 {[%clk 0:02:58.7]}
4. Nc3 {[%clk 0:02:59.5]} 4... exd5 {[%clk 0:02:58.7]} 5. cxd5 {[%clk
0:03:00.4]} 5... d6 {[%clk 0:02:59.2]} 6. Nf3 {[%clk 0:03:00.6]} 6... g6 {[%clk
0:02:58.9]} 7. g3 {[%clk 0:03:01]} 7... Bg7 {[%clk 0:02:58.8]} 8. Bg2 {[%clk
0:03:01.5]} 8... O-O {[%clk 0:02:59]} 9. O-O {[%clk 0:03:02.1]} 9... Re8 {[%clk
0:02:59.3]} 10. Nd2 {[%clk 0:03:02.2]} 10... a6 {[%clk 0:02:55]} 11. a4 {[%clk
0:03:01.6]} 11... Nbd7 {[%clk 0:02:55.4]} 12. Nc4 {[%clk 0:03:01.4]} 12... Ne5
{[%clk 0:02:55.5]} 13. Na3 {[%clk 0:03:01.6]} 13... Nh5 {[%clk 0:02:45.8]} 14.
Rb1 {[%clk 0:02:58.1]} 14... f5 {[%clk 0:02:24.3]} 15. b4 {[%clk 0:02:57.6]}
15... b6 {[%clk 0:02:14.7]} 16. Qb3 {[%clk 0:02:39.7]} 16... Rf8 {[%clk
0:01:59.9]} 17. e3 {[%clk 0:02:14.2]} 17... Qf6 {[%clk 0:01:28.6]} 18. Ne2
{[%clk 0:02:10.7]} 18... g5 {[%clk 0:01:20.8]} 19. Bd2 {[%clk 0:01:53.8]} 19...
Qh6 {[%clk 0:00:30.1]} 20. Nc4 {[%clk 0:01:45.6]} 20... Nxc4 {[%clk 0:00:27.8]}
21. Qxc4 {[%clk 0:01:45.3]} 21... f4 {[%clk 0:00:26.3]} 22. exf4 {[%clk
0:01:41.7]} 22... b5 {[%clk 0:00:18.3]} 23. fxg5 {[%clk 0:01:33.8]} 23... bxc4
{[%clk 0:00:14.7]} 24. gxh6 {[%clk 0:01:33.4]} 24... Bf6 {[%clk 0:00:14.5]} 25.
bxc5 {[%clk 0:01:33]} 25... c3 {[%clk 0:00:13.9]} 26. Bxc3 {[%clk 0:01:31]}
26... Bxc3 {[%clk 0:00:13.7]} 27. Nxc3 {[%clk 0:01:30.8]} 27... Bf5 {[%clk
0:00:14.4]} 28. Rb6 {[%clk 0:01:19.8]} 28... dxc5 {[%clk 0:00:14.4]} 29. d6
{[%clk 0:01:18.9]} 29... Nf6 {[%clk 0:00:14.4]} 30. Bxa8 {[%clk 0:01:17.8]}
30... Rxa8 {[%clk 0:00:15.3]} 31. Re1 {[%clk 0:01:15.4]} 31... Nd7 {[%clk
0:00:15.4]} 32. Rb7 {[%clk 0:01:14.1]} 32... Kf7 {[%clk 0:00:10.6]} 33. Re7+
{[%clk 0:01:13.9]} 33... Kf6 {[%clk 0:00:09.6]} 34. Rexd7 {[%clk 0:01:13.8]} 1-0

[Event "*** Titled Tuesday Blitz"]
[Site "Chess.com"]
[Date "2020.11.10"]
[Round "1"]
[White "saraswathii"]
[Black "esapunov"]
[Result "0-1"]
[WhiteElo "2363"]
[BlackElo "2710"]
[TimeControl "180+1"]
[EndTime "10:06:06 PST"]
[Termination "esapunov won by resignation"]

1. e4 {[%clk 0:02:59.4]} 1... c5 {[%clk 0:02:59.8]} 2. d3 {[%clk 0:02:58.2]}
2... Nc6 {[%clk 0:02:58.9]} 3. Nf3 {[%clk 0:02:55.7]} 3... g6 {[%clk 0:02:57.7]}
4. g3 {[%clk 0:02:54.2]} 4... Bg7 {[%clk 0:02:58]} 5. Bg2 {[%clk 0:02:52.9]}
5... e5 {[%clk 0:02:57.8]} 6. O-O {[%clk 0:02:52.3]} 6... Nge7 {[%clk
0:02:58.5]} 7. c3 {[%clk 0:02:51.9]} 7... O-O {[%clk 0:02:58.2]} 8. a3 {[%clk
0:02:50.3]} 8... d6 {[%clk 0:02:54.1]} 9. b4 {[%clk 0:02:42.7]} 9... a6 {[%clk
0:02:49.3]} 10. Nh4 {[%clk 0:02:39.3]} 10... Be6 {[%clk 0:02:43]} 11. Nd2 {[%clk
0:02:33.8]} 11... Rc8 {[%clk 0:02:31]} 12. Bb2 {[%clk 0:02:20.9]} 12... cxb4
{[%clk 0:02:22.2]} 13. axb4 {[%clk 0:02:18.8]} 13... d5 {[%clk 0:02:22.3]} 14.
Rc1 {[%clk 0:02:01.7]} 14... d4 {[%clk 0:02:08]} 15. Nhf3 {[%clk 0:01:53.9]}
15... dxc3 {[%clk 0:02:00.2]} 16. Bxc3 {[%clk 0:01:40.6]} 16... Qxd3 {[%clk
0:01:57]} 17. Ng5 {[%clk 0:01:21.4]} 17... Qd7 {[%clk 0:01:47.7]} 18. Nxe6
{[%clk 0:01:18]} 18... Qxe6 {[%clk 0:01:47.8]} 19. Qa4 {[%clk 0:01:13.8]} 19...
Nd4 {[%clk 0:01:43.7]} 20. Bxd4 {[%clk 0:00:55.2]} 20... exd4 {[%clk 0:01:43.6]}
21. Nb3 {[%clk 0:00:54.9]} 21... b5 {[%clk 0:01:25.2]} 22. Qa3 {[%clk 0:00:51]}
22... Rc3 {[%clk 0:01:22.6]} 23. Rxc3 {[%clk 0:00:49.3]} 23... dxc3 {[%clk
0:01:22.9]} 24. Nc5 {[%clk 0:00:49.2]} 24... Qc4 {[%clk 0:01:21]} 25. Nxa6
{[%clk 0:00:45.6]} 25... Ra8 {[%clk 0:01:09.2]} 26. e5 {[%clk 0:00:36]} 26...
Ra7 {[%clk 0:01:08.8]} 27. f4 {[%clk 0:00:18.4]} 27... Qc8 {[%clk 0:01:04.2]}
28. Ra1 {[%clk 0:00:15.2]} 28... c2 {[%clk 0:01:03.4]} 0-1

[Event "*** Titled Tuesday Blitz"]
[Site "Chess.com"]
[Date "2020.11.10"]
[Round "1"]
[White "xberli"]
[Black "Nachsueb"]
[Result "1-0"]
[WhiteElo "2536"]
[BlackElo "2161"]
[TimeControl "180+1"]
[EndTime "10:06:08 PST"]
[Termination "xberli won by checkmate"]

1. c3 {[%clk 0:02:57]} 1... e5 {[%clk 0:02:58.7]} 2. f3 {[%clk 0:02:57.9]} 2...
Nf6 {[%clk 0:02:56.5]} 3. Kf2 {[%clk 0:02:57.8]} 3... d5 {[%clk 0:02:56.4]} 4.
Ke3 {[%clk 0:02:57.8]} 4... Bc5+ {[%clk 0:02:55.3]} 5. d4 {[%clk 0:02:57.1]}
5... exd4+ {[%clk 0:02:56]} 6. cxd4 {[%clk 0:02:58]} 6... Qe7+ {[%clk
0:02:50.5]} 7. Kd2 {[%clk 0:02:52.5]} 7... Bxd4 {[%clk 0:02:49.4]} 8. Nc3 {[%clk
0:02:52.3]} 8... Qe3+ {[%clk 0:02:42.4]} 9. Kc2 {[%clk 0:02:41.6]} 9... Bf5+
{[%clk 0:02:40.3]} 10. Kb3 {[%clk 0:02:40.8]} 10... Qe5 {[%clk 0:02:24.8]} 11.
f4 {[%clk 0:02:34.3]} 11... Qd6 {[%clk 0:02:13.4]} 12. Qxd4 {[%clk 0:02:32.6]}
12... Nc6 {[%clk 0:02:10.8]} 13. Qa4 {[%clk 0:02:16.5]} 13... d4 {[%clk
0:02:05.3]} 14. Nb5 {[%clk 0:02:09.2]} 14... Qd5+ {[%clk 0:01:57.3]} 15. Ka3
{[%clk 0:01:59.5]} 15... Qc5+ {[%clk 0:01:48.6]} 16. b4 {[%clk 0:01:57.1]} 16...
Qb6 {[%clk 0:01:46.1]} 17. Nf3 {[%clk 0:01:24.7]} 17... a5 {[%clk 0:01:45.4]}
18. Kb2 {[%clk 0:01:17.6]} 18... O-O {[%clk 0:01:41.9]} 19. e4 {[%clk
0:01:12.1]} 19... dxe3 {[%clk 0:01:36.7]} 20. Qb3 {[%clk 0:01:04.1]} 20... axb4
{[%clk 0:01:30]} 21. Bxe3 {[%clk 0:01:01.5]} 21... Qxb5 {[%clk 0:01:29.5]} 22.
Bxb5 {[%clk 0:01:00.8]} 22... Na5 {[%clk 0:01:28.8]} 23. Qxb4 {[%clk 0:00:58.3]}
23... Nd5 {[%clk 0:01:27.6]} 24. Qd4 {[%clk 0:00:55]} 24... c6 {[%clk
0:01:26.4]} 25. Rac1 {[%clk 0:00:39.1]} 25... cxb5 {[%clk 0:01:24.5]} 26. Qxd5
{[%clk 0:00:38.3]} 26... Nc4+ {[%clk 0:01:23.9]} 27. Rxc4 {[%clk 0:00:38]} 27...
bxc4 {[%clk 0:01:24.4]} 28. Qxf5 {[%clk 0:00:38.1]} 28... c3+ {[%clk 0:01:23.2]}
29. Ka1 {[%clk 0:00:36.9]} 29... Ra3 {[%clk 0:01:21.7]} 30. Rc1 {[%clk
0:00:36.3]} 30... Rfa8 {[%clk 0:01:20.3]} 31. Rc2 {[%clk 0:00:36.2]} 31... b5
{[%clk 0:01:20.5]} 32. Ng5 {[%clk 0:00:35.6]} 32... b4 {[%clk 0:01:18]} 33.
Qxh7+ {[%clk 0:00:30.1]} 33... Kf8 {[%clk 0:01:18.2]} 34. Bc5+ {[%clk
0:00:30.5]} 34... Ke8 {[%clk 0:01:17.9]} 35. Qe4+ {[%clk 0:00:26.3]} 35... Kd7
{[%clk 0:01:16.7]} 36. Qd5+ {[%clk 0:00:26.3]} 36... Kc7 {[%clk 0:01:16.6]} 37.
Qd6+ {[%clk 0:00:26.4]} 37... Kb7 {[%clk 0:01:16.9]} 38. Qb6+ {[%clk 0:00:25]}
38... Kc8 {[%clk 0:01:17.3]} 39. Qc6+ {[%clk 0:00:24.7]} 39... Kd8 {[%clk
0:01:17.5]} 40. Nxf7# {[%clk 0:00:24.5]} 1-0